[Event "Norwegian Championship Elite 2022"]
[Site "Kongsvinger"]
[Date "2022.07.08"]
[Round "1.1"]
[White "Ostenstad, Berge"]
[Black "Hammer, Jon Ludvig"]
[Result "0-1"]
[ECO "B38"]
[WhiteElo "2451"]
[BlackElo "2638"]
[Annotator "TA"]
[PlyCount "108"]
[EventDate "2022.07.08"]
[EventCountry "NOR"]
[SourceTitle "playchess.com"]
[Source "ChessBase"]
[SourceQuality "1"]
[TimeControl "40/5400+30:1800+30"]

{[%evp 20,108,40,35,39,32,49,21,54,49,51,48,47,0,14,0,0,-12,0,-35,15,19,15,-35,0,0,0,0,0,0,0,-5,-5,-46,-45,-42,-31,-29,-31,-42,-38,-145,-166,-144,-168,-151,-151,-151,-154,-300,-289,-291,-290,-283,-21,-22,0,-260,0,-25,-38,-33,-31,-93,-86,-189,-187,-179,-164,-145,-140,-246,-227,-1441,-942,-1329,-1209,-29965,-11790,-29967,-29969,-29968,-29969,-29967,-29969,-29976,-29974,-29966,-12792,-29938,-12794]} 1. Nf3 {[%emt 0:00:06]} g6 {[%emt 0:02:19]} 2. e4 {[%emt 0:01:59]} c5 {[%emt 0:01:58]} 3. c4 {[%emt 0:07:48]} Bg7 {[%emt 0:00:22]} 4. d4 {[%emt 0:00:06]} cxd4 {[%emt 0:05:06]} 5. Nxd4 {[%emt 0:00:29]} Nc6 {[%emt 0:00:15]} 6. Be3 {[%emt 0:00:12]} Nf6 {[%emt 0:00:31]} 7. Nc3 {[%emt 0:00:10]} d6 {[%emt 0:01:14]} 8. Be2 {[%emt 0:01:12]} O-O {[%emt 0:00:59]} 9. O-O {[%emt 0:00:54]} Bd7 {[%emt 0:00:30]} 10. Nc2 {[%emt 0:00:57]} Rc8 {[%emt 0:08:37]} 11. f3 {[%emt 0:11:41]} Be6 {[%emt 0:13:05] B38: Sicilian: Maroczy Bind with 5...Bg7 and 7...0-0.} 12. Qd2 {[%emt 0:18:10]} Nd7 {[%emt 0:00:26]} 13. Rab1 {[%emt 0:12:49]} f5 {[%emt 0:00:52] The position is equal.} 14. exf5 $1 {[%emt 0:03:13]} Bxf5 {[%emt 0:06:06]} 15. Rbc1 {[%emt 0:01:48] [#]} Qa5 $146 {[%emt 0:07:10]} ({Predecessor:} 15... Rf7 16. b3 Qa5 17. Nd4 Nxd4 18. Bxd4 Bxd4+ 19. Qxd4 Qc5 20. Rcd1 g5 21. f4 gxf4 {½-½ (58) Blanco Gramajo,C (2538)-Sanchez,M (2359) ICCF email 2015}) 16. Na3 {[%emt 0:01:30]} (16. b4 $14 Qd8 17. Nd5) 16... Nc5 {[%emt 0:11:32]} 17. Rfd1 {[%emt 0:01:15]} a6 {[%emt 0:17:31]} 18. Bf1 {[%emt 0:18:13]} Rcd8 {[%emt 0:00:35]} 19. Kh1 {[%emt 0:02:42]} Kh8 {[%emt 0:07:00]} (19... Na4 $15 20. Qd5+ Qxd5 21. cxd5 Nxc3 22. bxc3 Ne5) 20. Bh6 {[%emt 0:02:05]} e5 {[%emt 0:03:10]} 21. Be3 {[%emt 0:00:48]} (21. Nc2 $11) 21... Nd4 {[%emt 0:03:39]} 22. Nd5 {[%emt 0:02:17]} Qxd2 {[%emt 0:00:04]} 23. Rxd2 {[%emt 0:00:16]} h5 {[%emt 0:00:16]} 24. b4 {[%emt 0:06:40]} Nce6 {[%emt 0:00:32]} 25. Bd3 {[%emt 0:00:20]} Kh7 {[%emt 0:00:11]} 26. Nc2 {[%emt 0:01:00]} Rc8 {[%emt 0:06:08]} 27. Bxd4 {[%emt 0:04:23]} exd4 {[%emt 0:00:04]} 28. Bxf5 {[%emt 0:00:10]} gxf5 {[%emt 0:00:30]} 29. Re1 {[%emt 0:00:17]} Rfe8 {[%emt 0:00:53]} 30. Na3 {[%emt 0:00:24] [#]} (30. Red1 $15) 30... Nf4 $1 $17 {[%emt 0:01:01][%cal Re8e1][%mdl 512]} 31. Rxe8 {[%emt 0:00:28]} Rxe8 {[%emt 0:00:10][%cal Re8e1]} 32. Kg1 {[%emt 0:00:10]} Nxd5 {[%emt 0:01:19]} 33. cxd5 {[%emt 0:00:03][%mdl 4096] Endgame KRB-KRN} Bh6 {[%emt 0:00:33]} 34. Rd1 {[%emt 0:00:24]} (34. Rd3 $17) 34... Rc8 $19 {[%emt 0:00:37]} 35. Kf1 {[%emt 0:02:21]} Rc3 {[%emt 0:02:11]} 36. Nb1 {[%emt 0:00:04] [#]} Rc2 {[%emt 0:00:09] Against Nd2} (36... Be3 $1 $19 {And now ...Rc2 would win.} 37. Ke2 (37. Nxc3 $2 dxc3 38. Re1 c2 $19) 37... Rc2+ 38. Nd2 Rxa2) 37. Na3 $1 $11 {[%emt 0:00:05]} Rc3 {[%emt 0:00:09]} (37... Rxa2 $11 38. Nc4 Be3 39. Nxd6 Kg6) 38. Nb1 $19 {[%emt 0:00:02] [#]} Rc2 {[%emt 0:00:08] Prevents Nd2.} ({Black should play} 38... Be3 $1 $19 {Hoping for ...Rc2.} 39. Ke2 (39. Nxc3 $2 dxc3 40. Re1 c2 $19) (39. Nd2 Rc2) 39... Rc2+ 40. Nd2 Rxa2) 39. Na3 $1 $11 {[%emt 0:00:03]} Rxa2 {[%emt 0:01:25]} 40. Nc4 {[%emt 0:00:00]} Be3 {[%emt 0:00:00]} 41. Nxd6 {[%emt 0:06:21]} ({White should try} 41. Rd3 $1 $15) 41... Kg6 $1 $17 {[%emt 0:00:42] Threatens to win with ...b5.} 42. Nxb7 {[%emt 0:07:08] [#]} (42. b5 $17) 42... Kf6 $1 $19 {[%emt 0:01:06]} ({Weaker is} 42... Rf2+ 43. Ke1 Kf6 44. d6 $11) 43. Na5 {[%emt 0:07:48]} Rf2+ {[%emt 0:23:15]} 44. Ke1 {[%emt 0:01:24]} Rxg2 {[%emt 0:00:01] Black is more active.} 45. Nc4 {[%emt 0:03:06]} (45. Nc6 $17 {is a better defense.}) 45... Rxh2 {[%emt 0:00:03] White must now prevent ...Rh1+.} 46. Nxe3 $2 {[%emt 0:00:21]} (46. Rd3) 46... dxe3 {[%emt 0:00:23] KR-KR} 47. Rd3 {[%emt 0:00:24]} f4 {[%emt 0:03:09] ( -> ...h4)} 48. Ra3 {[%emt 0:01:38]} Ke5 {[%emt 0:00:15]} (48... h4 $142 49. Rxa6+ Ke5 50. d6 Ke6 51. Rc6 h3 52. Rc4 Rb2 53. Rxf4 h2 54. Rh4 Kxd6 55. Kf1 {[#]} Rxb4 $3 {[%mdl 512]} 56. Rh6+ Ke5 57. Kg2 Rb1 58. f4+ Kxf4 59. Rh4+ Kg5 60. Rxh2 e2 61. Rh8 e1=Q 62. Rg8+ Kh6 63. Rh8+ Kg7 64. Kf3 Kxh8 65. Kg4 Rb4+ 66. Kg5 Qe5+ 67. Kg6 Rb6+ 68. Kf7 Rf6#) 49. Rxa6 {[%emt 0:04:25]} h4 {[%emt 0:00:52][%cal Bh5h4,Bh4h3,Bh3h2][%mdl 32]} 50. d6 {[%emt 0:03:37]} Ke6 {[%emt 0:00:05]} 51. d7+ {[%emt 0:01:40]} Kxd7 {[%emt 0:00:06]} 52. Rh6 {[%emt 0:00:09]} h3 {[%emt 0:00:09]} 53. b5 {[%emt 0:00:09]} Rh1+ {[%emt 0:00:10]} 54. Ke2 {[%emt 0:00:01]} h2 {[%emt 0:00:10] Weighted Error Value: White=0.67/Black=0.42} 0-1

[Event "Norwegian Championship Elite 2022"]
[Site "Kongsvinger"]
[Date "2022.07.08"]
[Round "1.2"]
[White "Agdestein, Simen"]
[Black "Kaasen, Tor Fredrik"]
[Result "1-0"]
[ECO "E66"]
[WhiteElo "2559"]
[BlackElo "2433"]
[Annotator "TA"]
[PlyCount "63"]
[EventDate "2022.07.08"]
[EventCountry "NOR"]
[SourceTitle "playchess.com"]
[Source "ChessBase"]
[SourceQuality "1"]
[TimeControl "40/5400+30:1800+30"]

{[%evp 20,63,13,10,33,13,36,30,39,30,46,29,88,47,56,35,32,27,30,27,76,68,84,69,352,338,401,424,420,409,384,401,1011,1000,1895,1875,1883,1685,1889,1826,29979,29980,29980,5914,29980,29980]} 1. c4 {[%emt 0:00:02]} g6 {[%emt 0:01:24]} 2. Nc3 {[%emt 0:04:00]} c5 {[%emt 0:00:34]} 3. g3 {[%emt 0:03:06]} Bg7 {[%emt 0:00:28]} 4. Bg2 {[%emt 0:00:07]} Nc6 {[%emt 0:00:34]} 5. Nf3 {[%emt 0:03:00]} Nf6 {[%emt 0:08:15]} 6. d4 {[%emt 0:01:19]} d6 {[%emt 0:01:19]} 7. d5 {[%emt 0:01:11]} Na5 {[%emt 0:00:52]} 8. Nd2 {[%emt 0:01:18]} O-O {[%emt 0:01:22]} 9. O-O {[%emt 0:02:00]} e6 {[%emt 0:00:30]} 10. Rb1 {[%emt 0:01:31]} exd5 {[%emt 0:04:38]} 11. cxd5 {[%emt 0:00:36]} Rb8 {[%emt 0:02:08] E66: King's Indian: Fianchetto: 6...c5 7 0-0 Nc6 8 d5.} 12. b4 {[%emt 0:07:25]} cxb4 {[%emt 0:05:34]} 13. Rxb4 {[%emt 0:00:43]} Bf5 {[%emt 0:07:56] White has an edge.} 14. Bb2 {[%emt 0:06:16] [#]} a6 $146 {[%emt 0:06:25]} ({Predecessor:} 14... b6 15. Nb5 Qe7 16. Qa1 Qxe2 17. Nf3 Qe7 18. Re1 Qd8 19. Nfd4 Bd7 20. Nc6 Nxc6 21. dxc6 Bxc6 22. Bxc6 {1-0 (30) Reschke,S (2385)-Dutschak,H (2260) Germany 1996}) 15. Qa1 {[%emt 0:06:02]} Re8 {[%emt 0:09:27]} (15... Rc8 $11 {keeps the balance.}) 16. a4 {[%emt 0:05:09][%cal Ba2a4,Ba4b5,Bb5a6][%mdl 32]} Rc8 {[%emt 0:03:45]} 17. h3 {[%emt 0:08:23] Hoping for g4.} h5 {[%emt 0:05:47] Prevents g4.} 18. e4 {[%emt 0:03:08]} Bd7 {[%emt 0:01:07]} 19. Ncb1 {[%emt 0:01:54][%cal Bc3b1,Bb1a3,Ba3c4,Bc4d6,Bd6c8,Bc8e7][%mdl 32]} b5 {[%emt 0:11:02]} (19... Rc2 $11 {should be considered.}) 20. Na3 {[%emt 0:06:04][%cal Ra4b5]} Nb7 {[%emt 0:05:40]} 21. axb5 {[%emt 0:01:04]} Qa5 {[%emt 0:03:01][%mdl 8192] [#] This move loses the game for Black.} (21... axb5 $14 22. Nxb5 Rc2) 22. bxa6 $1 $18 {[%emt 0:14:53]} Nc5 {[%emt 0:09:02] [#]} (22... Qxb4 23. axb7) 23. Bxf6 $1 {[%emt 0:13:25]} Bxf6 {[%emt 0:00:29] [#]} 24. Qxf6 {[%emt 0:00:04]} Qxb4 {[%emt 0:01:48]} 25. Nac4 {[%emt 0:00:34] Dancing on a razor blade.} Nb3 {[%emt 0:06:37]} (25... Rf8 $142 26. a7 Qb7 27. Nxd6 Qxa7 28. Nxc8 Bxc8) 26. Nxd6 {[%emt 0:01:54]} Nxd2 {[%emt 0:01:19]} 27. Qxf7+ {[%emt 0:02:31]} Kh8 {[%emt 0:00:01]} 28. Qxd7 {[%emt 0:01:22]} Rf8 {[%emt 0:00:07]} 29. Nxc8 {[%emt 0:00:53]} Nxf1 {[%emt 0:01:33]} 30. Qe7 {[%emt 0:00:50]} Qxe7 {[%emt 0:01:31]} 31. Nxe7 {[%emt 0:00:06]} Re8 {[%emt 0:00:03]} 32. d6 {[%emt 0:00:50] Weighted Error Value: White=0.06 (flawless) /Black=1.16} 1-0

[Event "Norwegian Championship Elite 2022"]
[Site "Kongsvinger"]
[Date "2022.07.08"]
[Round "1.3"]
[White "Djurhuus, Rune"]
[Black "Urkedal, Frode Olav Olsen"]
[Result "1/2-1/2"]
[ECO "C84"]
[WhiteElo "2407"]
[BlackElo "2555"]
[Annotator "TA"]
[PlyCount "104"]
[EventDate "2022.07.08"]
[EventCountry "NOR"]
[SourceTitle "playchess.com"]
[Source "ChessBase"]
[SourceQuality "1"]
[TimeControl "40/5400+30:1800+30"]

{[%evp 19,104,0,0,0,0,-11,0,0,0,-18,-16,-17,-2,-2,-3,-5,-6,-2,0,-5,-1,-5,-4,-4,-8,-7,-6,-6,-6,-8,-8,-8,-4,-4,-4,-4,-4,-4,-3,-5,-5,-5,0,-10,-9,-10,-8,-10,-12,-9,0,0,0,0,0,0,0,-1,0,0,0,-1,-1,-1,-1,-1,-1,-1,-1,-1,-1,-1,0,-1,-1,-22,-1,-22,0,-22,0,-22,-22,-22,-22,-22,-9]} 1. e4 {[%emt 0:12:44]} e5 {[%emt 0:00:09]} 2. Nf3 {[%emt 0:01:24]} Nc6 {[%emt 0:00:07]} 3. Bb5 {[%emt 0:00:14]} a6 {[%emt 0:00:10]} 4. Ba4 {[%emt 0:00:22]} Nf6 {[%emt 0:00:09][%cal Bg8f6,Bf6e4,Be4c5,Bc5b3][%mdl 32]} 5. O-O {[%emt 0:00:11]} Be7 {[%emt 0:00:24]} 6. d4 {[%emt 0:00:21]} exd4 {[%emt 0:01:03]} 7. e5 {[%emt 0:00:05]} Ne4 {[%emt 0:01:22]} 8. Nxd4 {[%emt 0:00:53]} O-O {[%emt 0:02:47]} 9. Nf5 {[%emt 0:00:06]} d5 {[%emt 0:02:53]} 10. exd6 {[%emt 0:05:40]} Bxf5 {[%emt 0:02:05] The position is equal.} 11. dxe7 {[%emt 0:00:05] C84: Closed Ruy Lopez: Unusual White 6th moves.} Nxe7 {[%emt 0:00:31]} 12. Bb3 {[%emt 0:03:40]} Nc5 {[%emt 0:18:47]} 13. Nc3 {[%emt 0:00:08] is the legacy move (13.Qxd8).} Nxb3 {[%emt 0:12:39]} 14. Qxd8 {[%emt 0:00:34]} Raxd8 {[%emt 0:02:12]} 15. cxb3 {[%emt 0:00:07]} Nc6 {[%emt 0:07:07]} 16. Bf4 {[%emt 0:02:04]} Rd7 {[%emt 0:00:07]} 17. Rfd1 {[%emt 0:03:12]} Nd4 {[%emt 0:00:49]} 18. f3 {[%emt 0:03:20]} Rfd8 {[%emt 0:03:00][%cal Od4e2]} 19. Kf2 {[%emt 0:00:19] Inhibits Ne2.} f6 {[%emt 0:02:37] [#]} 20. g4 $146 {[%emt 0:05:21]} ({Predecessor:} 20. Rac1 g5 21. Be3 Nc2 22. Rxd7 Rxd7 23. a3 Nxe3 24. Kxe3 Kf7 25. b4 h5 26. Rd1 {½-½ (57) Stojanovic,D (2502)-Sanal,V (2535) Subotica 2019}) 20... Bc2 {[%emt 0:03:11]} 21. Rd2 {[%emt 0:02:45]} Ne6 {[%emt 0:01:26][%csl LRd2,LRf4]} 22. Rxd7 {[%emt 0:01:30]} Rxd7 {[%emt 0:00:06]} 23. Be3 {[%emt 0:00:08]} f5 {[%emt 0:03:37] And now ...f4 would win.} 24. Rc1 {[%emt 0:04:45]} Bd3 {[%emt 0:01:30]} 25. Kg3 {[%emt 0:10:22] Prevents f4+.} g5 {[%emt 0:03:33] [#] Hoping for ...f4+.} 26. gxf5 {[%emt 0:00:09]} Bxf5 {[%emt 0:00:07]} 27. Rd1 {[%emt 0:00:34]} Rxd1 {[%emt 0:02:13]} 28. Nxd1 $11 {[%emt 0:00:06][%mdl 4096] Endgame KBN-KBN} Kf7 {[%emt 0:02:22]} 29. Nc3 {[%emt 0:00:10]} Kf6 {[%emt 0:00:59]} 30. b4 {[%emt 0:07:27]} Bd3 {[%emt 0:02:47]} 31. Kg4 {[%emt 0:10:31]} Kg6 {[%emt 0:01:50]} 32. Kg3 {[%emt 0:06:40]} Kf5 {[%emt 0:01:46]} 33. a3 {[%emt 0:00:07]} Bc4 {[%emt 0:07:32]} 34. Bd2 {[%emt 0:02:42]} b6 {[%emt 0:04:53]} 35. Nd1 {[%emt 0:01:03] [#] Black must now prevent Ne3+.} Bb3 {[%emt 0:00:02]} 36. Ne3+ {[%emt 0:00:20]} Kg6 {[%emt 0:00:07]} 37. Bc3 {[%emt 0:00:34]} b5 {[%emt 0:03:03]} 38. Ng4 {[%emt 0:05:54]} Bd5 {[%emt 0:06:52]} 39. Ne5+ {[%emt 0:00:42]} Kf5 {[%emt 0:00:07]} 40. Nd3 {[%emt 0:00:00]} c6 {[%emt 0:00:00]} 41. Nc5 {[%emt 0:01:05]} Nxc5 {[%emt 0:11:54]} 42. bxc5 {[%emt 0:00:14] KB-KB} Bb3 {[%emt 0:00:07]} 43. Bd2 {[%emt 0:01:14]} h5 {[%emt 0:00:35]} 44. h3 {[%emt 0:00:52]} Bd1 {[%emt 0:00:27]} 45. Kf2 {[%emt 0:00:36]} Bb3 {[%emt 0:00:39]} 46. Kg3 {[%emt 0:00:11]} Bc4 {[%emt 0:00:45]} 47. Be3 {[%emt 0:00:43]} a5 {[%emt 0:00:50]} 48. Bd2 {[%emt 0:01:06]} a4 {[%emt 0:00:05]} 49. Be3 {[%emt 0:00:04]} Bf1 {[%emt 0:00:19]} 50. Bd2 {[%emt 0:00:36]} Be2 {[%emt 0:01:51]} 51. Kf2 {[%emt 0:00:06]} Bd1 {[%emt 0:00:05]} 52. Kg3 {[%emt 0:00:07]} Bb3 {[%emt 0:01:19] An even fight not without its subleties.  Weighted Error Value: White=0.04 (flawless) /Black=0.03 (flawless)} 1/2-1/2

[Event "Norwegian Championship Elite 2022"]
[Site "Kongsvinger"]
[Date "2022.07.09"]
[Round "2.1"]
[White "Hammer, Jon Ludvig"]
[Black "Abdrlauf, Elham"]
[Result "1-0"]
[ECO "B12"]
[WhiteElo "2638"]
[BlackElo "2466"]
[Annotator "TA"]
[PlyCount "107"]
[EventDate "2022.07.08"]
[EventCountry "NOR"]
[SourceTitle "playchess.com"]
[Source "ChessBase"]
[SourceQuality "1"]
[TimeControl "40/5400+30:1800+30"]

{[%evp 9,107,12,11,11,14,11,11,15,18,13,24,9,19,25,23,0,0,17,41,9,16,0,0,1,8,9,24,20,39,0,0,-6,0,0,18,0,29,5,12,2,0,0,11,15,9,19,11,18,22,23,18,3,30,53,63,70,63,41,43,43,44,56,205,197,546,523,609,593,861,825,851,805,843,791,933,907,872,809,699,146,684,546,29967,29973,29968,29974,29980,29981,29981,29979,29979,29980,29980,29981,29980,29977,29977,29978,29996,29997]} 1. e4 {[%emt 0:00:01]} c6 {[%emt 0:10:22]} 2. d4 {[%emt 0:00:09]} d5 {[%emt 0:00:10]} 3. e5 {[%emt 0:00:06]} c5 {[%emt 0:00:07]} 4. Nf3 {[%emt 0:00:27]} cxd4 {[%emt 0:00:07]} 5. Nxd4 {[%emt 0:00:08]} Nc6 {[%emt 0:00:04]} 6. Nxc6 {[%emt 0:00:23] B12: Caro-Kann: Advance Variation.} bxc6 {[%emt 0:00:07]} 7. Bd3 {[%emt 0:00:12]} e6 {[%emt 0:00:03]} 8. O-O {[%emt 0:00:33] The position is equal.} Ne7 {[%emt 0:00:04][%cal Bg8e7,Be7g6,Bg6h8,Bh8f7][%mdl 32]} 9. Nd2 {[%emt 0:00:21]} a5 {[%emt 0:00:41]} 10. c4 $5 {[%emt 0:01:22][%mdl 4] An interesting side line.} Ng6 {[%emt 0:03:31]} 11. Nf3 {[%emt 0:00:11]} Be7 {[%emt 0:00:45] [#]} 12. g3 $146 {[%emt 0:10:53]} ({Predecessor:} 12. cxd5 exd5 13. Nd4 Bd7 14. Nf5 O-O 15. f4 c5 16. Be3 c4 17. Bc2 Bxf5 18. Bxf5 {½-½ (35) Los,A (2405)-Tkachenko,I (2362) ICCF email 2021}) 12... O-O {[%emt 0:16:27]} 13. h4 {[%emt 0:01:36][%cal Bh2h4,Bh4h5][%mdl 32]} f5 {[%emt 0:01:11]} 14. h5 {[%emt 0:14:27]} Nh8 {[%emt 0:00:10]} 15. cxd5 {[%emt 0:00:05]} cxd5 {[%emt 0:02:25]} 16. Be3 {[%emt 0:03:46]} Nf7 {[%emt 0:07:34]} 17. Rc1 {[%emt 0:16:01]} Bd7 {[%emt 0:22:19] Against Bb5} 18. Qe2 {[%emt 0:07:25]} Qb8 {[%emt 0:08:09]} 19. Bd4 {[%emt 0:09:20]} Nh6 {[%emt 0:07:12]} 20. Rc3 {[%emt 0:03:23]} Rc8 {[%emt 0:01:31]} 21. Rfc1 {[%emt 0:10:45] Strongly threatening Rxc8+.} Qb7 {[%emt 0:00:17]} 22. Nh2 {[%emt 0:03:29]} Bb4 {[%emt 0:04:34]} 23. R3c2 {[%emt 0:01:05]} Rxc2 {[%emt 0:02:02]} 24. Rxc2 {[%emt 0:00:02]} Rc8 {[%emt 0:00:13]} 25. g4 {[%emt 0:00:59]} Rxc2 {[%emt 0:00:54]} 26. Qxc2 {[%emt 0:00:07]} Qc6 {[%emt 0:01:35]} 27. Qxc6 {[%emt 0:10:07]} Bxc6 {[%emt 0:00:08]} 28. g5 {[%emt 0:01:36]} Nf7 {[%emt 0:00:07]} 29. a3 {[%emt 0:01:25]} Bd2 {[%emt 0:02:26]} 30. g6 {[%emt 0:03:37]} hxg6 {[%emt 0:00:34]} 31. Nf3 {[%emt 0:00:07]} Bf4 {[%emt 0:01:16]} 32. hxg6 {[%emt 0:00:06]} Nh8 {[%emt 0:00:10]} 33. b4 {[%emt 0:00:07] White is more active.} (33. Ba6 $5 {[%cal Rb2b4]}) 33... axb4 {[%emt 0:00:19]} 34. axb4 {[%emt 0:00:01]} Bb7 {[%emt 0:03:12]} 35. Nh4 {[%emt 0:00:02]} Bg5 {[%emt 0:03:34] [#]} (35... Bc8 $14) 36. Nxf5 $1 $18 {[%emt 0:00:16] Nd6 is the strong threat.} ({And not} 36. Nf3 Bd8 $15) 36... exf5 {[%emt 0:00:25]} (36... Nxg6 37. Nd6 Nh4) 37. Bxf5 {[%emt 0:00:03]} Kf8 {[%emt 0:00:45]} 38. b5 {[%emt 0:00:07] Against Bc6} Ke7 {[%emt 0:03:05]} 39. Kg2 {[%emt 0:00:14]} Kd8 {[%emt 0:00:53]} 40. Kg3 {[%emt 0:00:00]} Be7 {[%emt 0:00:00]} 41. Kg4 {[%emt 0:01:25]} Bb4 {[%emt 0:02:23]} 42. f4 {[%emt 0:06:14]} Bd2 {[%emt 0:05:57]} 43. Bd3 {[%emt 0:08:06]} Bc8+ {[%emt 0:00:34] [#]} 44. Kg3 $2 {[%emt 0:00:10]} (44. Kg5 $1 $18 {and the rest is easy.} Kc7 45. Bf5 Bxf5 46. Kxf5 Bxf4 47. Kxf4 Nxg6+ 48. Kf5 Ne7+ 49. Ke6) 44... Bd7 $2 {[%emt 0:07:52][%mdl 8192] This costs Black the game.} (44... Kc7 $16 45. Kf3 Bd7) 45. b6 {[%emt 0:02:43][%cal Bb5b6,Bb6b7][%mdl 32]} Bb5 {[%emt 0:03:27]} 46. Bxb5 {[%emt 0:08:38] White mates.} Nxg6 {[%emt 0:00:07] KBB-KBN} 47. Kg4 {[%emt 0:00:06]} Nxf4 {[%emt 0:01:28]} 48. Ba6 {[%emt 0:03:37]} Ng6 {[%emt 0:01:11]} 49. e6 {[%emt 0:00:10][%cal Be5e6,Be6e7][%mdl 32]} Bb4 {[%emt 0:02:29]} 50. b7 {[%emt 0:04:38]} Bd6 {[%emt 0:01:42] [#]} 51. Bc5 $1 {[%emt 0:00:05][%mdl 512] A strong pair of Bishops.} Bb8 {[%emt 0:06:36]} (51... Bh2 52. Bd3) 52. Kg5 {[%emt 0:00:04]} Ne7 {[%emt 0:00:37]} 53. Bb5 {[%emt 0:00:12]} Ng8 {[%emt 0:00:54]} 54. e7+ {[%emt 0:00:17] Weighted Error Value: White=0.22 (precise) /Black=0.55} 1-0

[Event "Norwegian Championship Elite 2022"]
[Site "Kongsvinger"]
[Date "2022.07.09"]
[Round "2.2"]
[White "Ostmoe, Geir Sune Tallaksen"]
[Black "Agdestein, Simen"]
[Result "1/2-1/2"]
[ECO "A90"]
[WhiteElo "2483"]
[BlackElo "2559"]
[Annotator "TA"]
[PlyCount "119"]
[EventDate "2022.07.08"]
[EventCountry "NOR"]
[SourceTitle "playchess.com"]
[Source "ChessBase"]
[SourceQuality "1"]
[TimeControl "40/5400+30:1800+30"]

{[%evp 16,119,23,18,38,22,29,31,15,20,38,42,27,53,52,47,32,28,34,35,24,24,27,19,22,0,0,0,0,0,0,0,0,0,0,-21,0,0,0,0,0,-62,-56,-66,-61,-41,0,0,0,0,0,0,0,0,0,-21,-5,-42,0,-61,-34,-34,-14,-17,-17,-17,-17,-17,-25,-25,-25,-25,-25,-25,-10,-10,-8,-10,0,0,0,0,0,0,0,0,0,0,0,0,0,0,0,-8,-8,-8,-8,-8,-8,-8,-8,-8,0,-8,-8,-8]} 1. d4 {[%emt 0:00:09]} e6 {[%emt 0:00:03]} 2. c4 {[%emt 0:00:18]} f5 {[%emt 0:00:26]} 3. Nf3 {[%emt 0:00:25]} Nf6 {[%emt 0:00:14]} 4. g3 {[%emt 0:00:25]} d5 {[%emt 0:00:29]} 5. Bg2 {[%emt 0:00:29]} Bd6 {[%emt 0:01:40]} 6. O-O {[%emt 0:01:03]} O-O {[%emt 0:00:38]} 7. Nc3 {[%emt 0:01:10]} c6 {[%emt 0:02:59]} 8. Qc2 {[%emt 0:00:42]} Ne4 {[%emt 0:01:39]} 9. Rb1 {[%emt 0:01:19]} a5 {[%emt 0:00:12] A90: Dutch Defence: Miscellaneous and Modern Stonewall (with ...Bd6).} 10. a3 {[%emt 0:02:45]} Nd7 {[%emt 0:01:42]} 11. b4 {[%emt 0:03:58]} axb4 {[%emt 0:01:09] White is slightly better.} 12. axb4 {[%emt 0:00:05]} Nxc3 {[%emt 0:01:54]} 13. Qxc3 {[%emt 0:00:23]} dxc4 {[%emt 0:00:06]} 14. Qxc4 {[%emt 0:03:39]} Nb6 {[%emt 0:00:06]} 15. Qc2 {[%emt 0:11:11]} Nd5 {[%emt 0:02:00]} 16. Bd2 {[%emt 0:00:50]} Qe7 {[%emt 0:03:08][%cal Rd5b4]} 17. b5 {[%emt 0:04:29] [#]} Bd7 $146 {[%emt 0:01:39]} ({Predecessor:} 17... c5 18. dxc5 Bxc5 19. Rfc1 b6 20. Ne5 Ra3 21. Nd3 Bd6 22. Ra1 Bd7 23. Qb2 Rfa8 {½-½ (30) Stull,N (2164)-Haensel,J (1864) Luxembourg 2017}) 18. Ne5 {[%emt 0:09:31]} (18. bxc6 {looks sharper.} Bxc6 19. e4 fxe4 20. Ng5) 18... Bxe5 {[%emt 0:17:48]} 19. dxe5 {[%emt 0:00:05]} Rfc8 {[%emt 0:00:44]} 20. b6 {[%emt 0:08:55]} Be8 {[%emt 0:04:54]} 21. e4 {[%emt 0:03:30]} fxe4 {[%emt 0:00:10]} 22. Bxe4 {[%emt 0:00:05]} Bg6 {[%emt 0:03:45]} 23. Bxg6 {[%emt 0:01:59]} hxg6 {[%emt 0:00:03]} 24. Qxg6 {[%emt 0:03:16]} c5 {[%emt 0:02:08]} 25. Bh6 {[%emt 0:08:19][%cal Oh6g7]} Qf7 {[%emt 0:05:43][%mdl 1024] Black has compensation.} 26. Qg4 {[%emt 0:00:26][%cal Oh6g7]} Rc6 {[%emt 0:07:10][%cal Bc8c6,Bc6b6,Bb6b4,Bb4e4][%mdl 32]} 27. Rb3 {[%emt 0:04:32]} Kh7 {[%emt 0:12:55]} 28. Rf3 {[%emt 0:01:40]} ({White should try} 28. Bg5 $11) 28... Qg6 $1 $15 {[%emt 0:05:12]} 29. Bg5 {[%emt 0:01:56]} Rxb6 {[%emt 0:01:15]} 30. Rc1 {[%emt 0:02:12]} Rb4 {[%emt 0:10:40]} 31. Qh3+ {[%emt 0:03:20]} Kg8 {[%emt 0:00:29]} 32. Rxc5 {[%emt 0:01:50]} Re4 {[%emt 0:00:39]} 33. Bd2 {[%emt 0:14:39]} Rxe5 {[%emt 0:00:10][%cal Od5f4]} 34. Rc4 {[%emt 0:00:24] Inhibits Nf4.} Re4 {[%emt 0:03:22] Against Rg4} 35. Rc1 {[%emt 0:02:18]} Re2 {[%emt 0:02:44]} 36. Bf4 {[%emt 0:02:58]} (36. Be3 $5) 36... Rf8 {[%emt 0:04:25]} 37. Qg2 {[%emt 0:00:51]} (37. Bd6 $1 $11 Ra8 38. Rb3) 37... Qe4 {[%emt 0:03:33] [#] Strongly threatening ...g5.} 38. Rb3 $1 {[%emt 0:01:06]} Nxf4 {[%emt 0:00:37][%csl Gf4][%cal Re4g2]} 39. Qxe4 {[%emt 0:01:31]} Nh3+ {[%emt 0:00:47]} 40. Kg2 {[%emt 0:00:00]} Rfxf2+ {[%emt 0:00:00]} 41. Kxh3 {[%emt 0:00:17] [#] Intending Rc8+ and mate.} Rxh2+ {[%emt 0:00:36]} 42. Kg4 {[%emt 0:00:04] Rc8+ would kill now.} Rxe4+ $11 {[%emt 0:00:06][%mdl 4096] Endgame KRR-KRR} 43. Kf3 {[%emt 0:00:38]} Ree2 {[%emt 0:07:29]} 44. Rxb7 {[%emt 0:01:27]} Ref2+ {[%emt 0:00:36]} 45. Kg4 {[%emt 0:03:36] The position is equal.} Rh6 {[%emt 0:01:41]} 46. Rc5 {[%emt 0:02:13]} Rg6+ {[%emt 0:06:52]} 47. Rg5 $1 {[%emt 0:00:33]} Kh7 {[%emt 0:01:07]} 48. Re7 {[%emt 0:03:29]} Re2 {[%emt 0:01:06]} 49. Kh5 {[%emt 0:01:21]} Rh2+ {[%emt 0:00:07]} 50. Kg4 {[%emt 0:00:04]} Re2 {[%emt 0:00:26]} 51. Kh5 {[%emt 0:00:07]} Rxg5+ {[%emt 0:00:13]} 52. Kxg5 {[%emt 0:00:05] KR-KR} Re5+ {[%emt 0:00:22]} 53. Kf4 {[%emt 0:01:03]} Rf5+ {[%emt 0:00:46]} 54. Ke4 {[%emt 0:07:43]} Rf6 {[%emt 0:00:10]} 55. Ke5 {[%emt 0:00:18]} Rf3 {[%emt 0:00:53]} 56. Rxe6 {[%emt 0:01:04]} Rxg3 {[%emt 0:00:18] ( -> ...Re3+)} 57. Kf4 {[%emt 0:00:12] Prevents Re3.} Rg1 {[%emt 0:00:11]} 58. Kf3 {[%emt 0:01:05]} g6 {[%emt 0:00:37]} 59. Re5 {[%emt 0:00:31]} Kh6 {[%emt 0:00:06]} 60. Kf2 $1 {[%emt 0:00:11] Weighted Error Value: White=0.08 (flawless) /Black=0.05 (flawless)} 1/2-1/2